[Event "88th GER-ch Men 2017"]
[Site "Apolda"]
[Date "2017.06.28"]
[Round "6"]
[White "Jahncke, Giso"]
[Black "Fuchs, Florian"]
[Result "0-1"]
[ECO "A05"]
[WhiteElo "2340"]
[BlackElo "2335"]
[Annotator "NA"]
[PlyCount "80"]
[EventDate "2017.??.??"]
[EventType "swiss"]
[EventCountry "GER"]
[SourceTitle "playchess.com"]
[Source "ChessBase"]
[SourceQuality "1"]
[TimeControl "40/6000+30:3000+30"]

1. Nf3 {[%emt 0:00:00]} Nf6 {[%emt 0:00:07]} 2. c4 {[%emt 0:00:00]} e6 {[%emt 0:00:26]} 3. g3 {[%emt 0:00:00]} b6 {[%emt 0:00:13]} 4. Bg2 {[%emt 0:00:21]} Bb7 {[%emt 0:00:11]} 5. O-O {[%emt 0:00:08]} Be7 {[%emt 0:01:00]} 6. b3 {[%emt 0:01:14]} d5 {[%emt 0:02:29]} 7. Bb2 {[%emt 0:01:19]} O-O {[%emt 0:02:23]} 8. e3 {[%emt 0:01:55]} Nbd7 {[%emt 0:04:27]} 9. Nc3 {[%emt 0:05:00]} c5 {[%emt 0:10:27]} 10. Re1 {[%emt 0:09:35] A14: English Opening: 1...e6 with b3 by White} (10. Qe2 Qc7 11. Nh4 dxc4 12. bxc4 Ne8 13. f4 Bxg2 14. Nxg2 Bf6 15. f5 Qc6 16. fxe6 fxe6 17. Nf4 Nc7 18. d3 Bxc3 19. Bxc3 {½-½ (36) Caruana,F (2802)-Anand,V (2791) Shamkir 2015}) 10... Rc8 $146 {[%emt 0:06:41]} ({Predecessor:} 10... a6 11. Rc1 dxc4 12. bxc4 Qc7 13. d3 Rfd8 14. Rc2 Nf8 15. Rd2 Rd7 16. Qb1 Bc6 17. e4 Ng6 {1-0 (37) Lomakina,G (2092)-Cherednichenko,V (1959) Voronezh 2008}) 11. cxd5 {[%emt 0:07:00]} exd5 {[%emt 0:01:00]} 12. d4 {[%emt 0:00:57]} Ne4 {[%emt 0:06:11]} 13. Nxe4 {[%emt 0:14:57]} (13. Rc1 $14) 13... dxe4 {[%emt 0:00:14]} 14. Nd2 {[%emt 0:02:38]} f5 {[%emt 0:02:06]} 15. f3 {[%emt 0:12:12]} Nf6 {[%emt 0:11:07]} 16. fxe4 {[%emt 0:06:15]} fxe4 {[%emt 0:00:58]} 17. Rc1 {[%emt 0:07:31]} Qe8 {[%emt 0:05:56]} 18. Nc4 {[%emt 0:10:11]} Rd8 {[%emt 0:04:34]} 19. Qe2 {[%emt 0:02:04]} Kh8 {[%emt 0:06:57]} 20. Rf1 {[%emt 0:01:19]} Qd7 {[%emt 0:09:17]} 21. Ne5 {[%emt 0:02:10]} Qe6 {[%emt 0:00:21]} 22. Rf4 {[%emt 0:04:20]} Bd6 $14 {[%emt 0:08:33]} 23. Rcf1 {[%emt 0:01:43]} Kg8 {[%emt 0:05:23]} 24. Rf5 {[%emt 0:01:53]} Bc8 {[%emt 0:07:18]} 25. Rg5 {[%emt 0:08:49]} h6 {[%emt 0:02:28]} 26. Rgf5 {[%emt 0:05:05]} cxd4 {[%emt 0:03:59]} 27. exd4 {[%emt 0:00:28]} Qxf5 {[%emt 0:00:54]} 28. Rxf5 {[%emt 0:00:03]} Bxf5 {[%emt 0:00:07]} 29. Nc4 {[%emt 0:02:04]} Bb8 {[%emt 0:02:46]} 30. Ne3 {[%emt 0:00:07]} Bg6 {[%emt 0:00:32]} 31. Bh3 {[%emt 0:00:56]} Kh8 {[%emt 0:01:07]} 32. Qb5 {[%emt 0:00:33]} Be8 {[%emt 0:01:00]} 33. Qf1 {[%emt 0:01:46]} Nh7 {[%emt 0:01:40]} 34. Bf5 {[%emt 0:01:30]} Bd7 {[%emt 0:02:22]} 35. g4 {[%emt 0:00:07]} Ng5 {[%emt 0:00:49]} 36. Ba3 {[%emt 0:00:43]} Rfe8 {[%emt 0:01:16]} 37. Bxd7 {[%emt 0:00:54]} Rxd7 {[%emt 0:00:13]} 38. Qb5 {[%emt 0:00:20]} Red8 {[%emt 0:00:36]} 39. d5 {[%emt 0:00:40]} Bf4 {[%emt 0:00:44]} 40. Ng2 {[%emt 0:00:33]} Rxd5 {[%emt 0:50:27]} 0-1

[Event "88th GER-ch Men 2017"]
[Site "Apolda"]
[Date "2017.06.28"]
[Round "6"]
[White "Schulz, Karsten"]
[Black "Telljohan, Sven"]
[Result "1/2-1/2"]
[ECO "A37"]
[WhiteElo "2264"]
[BlackElo "2404"]
[Annotator "NA"]
[PlyCount "55"]
[EventDate "2017.??.??"]
[EventType "swiss"]
[EventCountry "GER"]
[SourceTitle "playchess.com"]
[Source "ChessBase"]
[SourceQuality "1"]
[TimeControl "40/6000+30:3000+30"]

{[%evp 18,51,54,35,43,43,58,37,47,58,70,81,32767,32767,32767,55,59,70,64,47,32767,43,70,64,75,58,68,32767,58,46,78,32767,32767,32767,32767,0]} 1. c4 {[%emt 0:00:00]} g6 {[%emt 0:00:22]} 2. Nc3 {[%emt 0:00:26]} Bg7 {[%emt 0:00:03]} 3. g3 {[%emt 0:00:21]} c5 {[%emt 0:00:45]} 4. Bg2 {[%emt 0:03:00]} Nc6 {[%emt 0:00:55]} 5. Nf3 {[%emt 0:00:34]} d6 {[%emt 0:04:13]} 6. O-O {[%emt 0:01:02]} Qd7 {[%emt 0:00:38]} 7. b3 {[%emt 0:01:32] A37: Symmetrical English vs ...g6: 4 Bg2 Bg7 5 Nf3} (7. e3 Bxc3 8. bxc3 f5 9. d3 Nf6 10. Nd2 b6 11. f4 Bb7 12. e4 O-O-O 13. Re1 fxe4 14. Nxe4 Nxe4 15. Bxe4 {½-½ (45) Nakamura,H (2775)-Carlsen,M (2835) Moscow 2012}) 7... b6 {[%emt 0:00:30]} 8. Bb2 {[%emt 0:00:07]} Bb7 {[%emt 0:00:19]} 9. e3 {[%emt 0:00:57]} Ne5 $146 {[%emt 0:14:41]} ({Predecessor:} 9... e6 10. d4 cxd4 11. exd4 Nge7 12. Rb1 O-O 13. d5 exd5 14. Nxd5 Nxd5 15. Bxg7 {½-½ (24) Jatoba de Oliveira Reis,P (2380)-Barbosa,E (2461) Natal 2016}) 10. d4 {[%emt 0:03:28]} Nxf3+ {[%emt 0:04:06]} 11. Bxf3 {[%emt 0:00:09]} Bxf3 {[%emt 0:00:30]} 12. Qxf3 {[%emt 0:00:08]} Rb8 {[%emt 0:01:08]} 13. Rad1 {[%emt 0:03:27]} Qb7 {[%emt 0:07:48]} 14. Qe2 {[%emt 0:03:04]} Nh6 {[%emt 0:07:58]} 15. dxc5 {[%emt 0:03:46]} bxc5 {[%emt 0:08:45]} 16. Nd5 {[%emt 0:06:16]} O-O {[%emt 0:03:27]} 17. Bxg7 {[%emt 0:01:46]} Kxg7 {[%emt 0:00:04]} 18. e4 {[%emt 0:00:34]} f6 {[%emt 0:05:09]} 19. f4 {[%emt 0:06:39]} e6 {[%emt 0:03:33]} 20. Nc3 {[%emt 0:01:34]} Qe7 {[%emt 0:02:24]} 21. Rd3 {[%emt 0:01:32]} Nf7 {[%emt 0:02:20]} 22. Rfd1 {[%emt 0:02:01]} Rfd8 {[%emt 0:01:28]} 23. R1d2 {[%emt 0:03:18]} a6 {[%emt 0:02:28]} 24. Qe3 {[%emt 0:07:47]} (24. Kf2 $16) 24... Rbc8 {[%emt 0:03:00]} 25. Qe2 {[%emt 0:01:07]} Rb8 {[%emt 0:03:17]} 26. Qe3 $11 {[%emt 0:00:10]} Rbc8 {[%emt 0:00:05]} 27. Qe2 {[%emt 0:00:10]} Rb8 {[%emt 0:00:09]} 28. Qe3 1/2-1/2

[Event "88th GER-ch Men 2017"]
[Site "Apolda"]
[Date "2017.06.28"]
[Round "6"]
[White "Kersten, Uwe"]
[Black "Miller, Eduard"]
[Result "0-1"]
[ECO "A45"]
[WhiteElo "2257"]
[BlackElo "2319"]
[Annotator "NA"]
[PlyCount "74"]
[EventDate "2017.??.??"]
[EventType "swiss"]
[EventCountry "GER"]
[SourceTitle "playchess.com"]
[Source "ChessBase"]
[SourceQuality "1"]
[TimeControl "40/6000+30:3000+30"]

1. d4 {[%emt 0:00:00]} Nf6 {[%emt 0:00:05]} 2. Bf4 {[%emt 0:00:06]} g6 {[%emt 0:00:07]} 3. Nc3 {[%emt 0:01:42]} d5 {[%emt 0:12:54] A45: Trompowsky Attack} 4. e3 {[%emt 0:00:33]} Bg7 {[%emt 0:08:02] LiveBook: 73 Games} 5. h4 {[%emt 0:01:30]} h5 {[%emt 0:07:35]} (5... c5 $5) 6. Nb5 {[%emt 0:02:27]} Na6 {[%emt 0:00:31]} 7. Be2 $146 {[%emt 0:06:31]} ({Predecessor:} 7. Nf3 c6 8. Nc3 Bf5 9. Bxa6 bxa6 10. Ne5 Qc8 11. Na4 {1-0 (31) Matlakov,M (2691)-Rakhmanov,A (2662) Sochi 2016}) 7... O-O {[%emt 0:05:50]} 8. Nf3 {[%emt 0:02:47]} c6 {[%emt 0:08:28]} 9. Nc3 {[%emt 0:00:23]} Qa5 {[%emt 0:01:58]} 10. Kf1 {[%emt 0:10:55]} Nc7 {[%emt 0:18:33]} 11. Be5 {[%emt 0:28:19]} Ng4 {[%emt 0:04:13]} 12. Bxg7 {[%emt 0:09:40]} Kxg7 {[%emt 0:01:03]} 13. a3 {[%emt 0:06:56]} Ne8 {[%emt 0:06:49]} 14. e4 {[%emt 0:09:11]} Nef6 {[%emt 0:06:21]} 15. Bd3 {[%emt 0:02:58]} dxe4 {[%emt 0:01:26]} 16. Nxe4 {[%emt 0:06:24]} Nxe4 $17 {[%emt 0:00:39]} 17. Bxe4 {[%emt 0:00:45]} Qb5+ {[%emt 0:00:08]} 18. Bd3 {[%emt 0:01:41]} Qxb2 {[%emt 0:00:27]} 19. g3 {[%emt 0:00:51]} Be6 {[%emt 0:00:22]} 20. Rb1 {[%emt 0:07:14]} Qxa3 {[%emt 0:00:05]} 21. Kg2 {[%emt 0:02:54]} b5 {[%emt 0:01:08]} 22. Be4 {[%emt 0:00:43]} Qd6 {[%emt 0:00:48]} 23. Re1 {[%emt 0:00:44]} Nf6 {[%emt 0:02:09]} 24. Kg1 {[%emt 0:03:23]} Nxe4 {[%emt 0:01:04]} 25. Rxe4 {[%emt 0:00:02]} Bd5 {[%emt 0:00:24]} 26. Re5 {[%emt 0:00:55]} a5 {[%emt 0:02:32]} 27. Qe2 {[%emt 0:01:32]} a4 {[%emt 0:00:27]} 28. Ng5 {[%emt 0:01:39]} a3 {[%emt 0:01:39]} 29. Rxe7 {[%emt 0:00:29]} a2 {[%emt 0:00:06]} 30. Ra1 {[%emt 0:00:03]} Ra4 {[%emt 0:02:04]} 31. c3 {[%emt 0:00:28]} b4 {[%emt 0:00:44]} 32. Re8 {[%emt 0:01:34]} Rxe8 {[%emt 0:00:44]} 33. Qxe8 {[%emt 0:00:02]} bxc3 {[%emt 0:00:23]} 34. Kh2 {[%emt 0:00:50]} Rxd4 {[%emt 0:00:21]} 35. Kh3 {[%emt 0:00:42]} c2 {[%emt 0:00:25]} 36. Re1 {[%emt 0:00:31]} Rd1 {[%emt 0:00:19]} 37. Re4 {[%emt 0:00:26]} a1=Q {[%emt 0:00:25]} 0-1

[Event "88th GER-ch Men 2017"]
[Site "Apolda"]
[Date "2017.06.28"]
[Round "6"]
[White "Bussard, Christian"]
[Black "Buecker, Stefan"]
[Result "0-1"]
[ECO "A40"]
[WhiteElo "2251"]
[BlackElo "2291"]
[Annotator "NA"]
[PlyCount "82"]
[EventDate "2017.??.??"]
[EventType "swiss"]
[EventCountry "GER"]
[SourceTitle "playchess.com"]
[Source "ChessBase"]
[SourceQuality "1"]
[TimeControl "40/6000+30:3000+30"]

1. d4 {[%emt 0:00:00]} Nc6 {[%emt 0:02:44]} 2. Nf3 {[%emt 0:00:29]} d6 {[%emt 0:01:20]} 3. e4 {[%emt 0:02:06]} Nf6 {[%emt 0:04:20]} 4. Nc3 {[%emt 0:00:21]} e6 {[%emt 0:00:51]} 5. Be2 {[%emt 0:02:03]} d5 {[%emt 0:02:21]} 6. exd5 {[%emt 0:00:28]} exd5 {[%emt 0:00:16]} 7. O-O {[%emt 0:00:40]} Bb4 {[%emt 0:00:42]} 8. a3 {[%emt 0:01:41]} Bxc3 {[%emt 0:00:07]} 9. bxc3 {[%emt 0:00:04]} O-O {[%emt 0:04:43]} 10. c4 {[%emt 0:02:05]} Na5 {[%emt 0:11:41]} 11. cxd5 {[%emt 0:02:09]} Qxd5 {[%emt 0:00:34]} 12. Rb1 {[%emt 0:07:51]} a6 {[%emt 0:10:59]} 13. Bf4 {[%emt 0:08:53]} Ne4 {[%emt 0:07:05]} 14. Qe1 {[%emt 0:01:40]} Nd6 {[%emt 0:00:16]} 15. Qc3 {[%emt 0:04:14]} Nc6 {[%emt 0:10:24]} 16. Rfe1 {[%emt 0:07:28]} Qf5 {[%emt 0:06:16]} (16... Bg4 $14) 17. Qd2 {[%emt 0:04:16]} Ne4 {[%emt 0:03:34]} 18. Qe3 {[%emt 0:00:50]} Nc3 {[%emt 0:00:18] [#]} 19. Bd3 $1 {[%emt 0:01:14]} Qa5 {[%emt 0:01:53]} 20. Rb3 {[%emt 0:13:48]} Nd5 {[%emt 0:00:29]} 21. Qd2 {[%emt 0:01:36]} Bg4 {[%emt 0:00:29]} 22. c3 {[%emt 0:16:13]} Bxf3 {[%emt 0:00:07]} 23. gxf3 {[%emt 0:00:07]} b5 {[%emt 0:00:09]} 24. Bg3 {[%emt 0:02:20]} h6 {[%emt 0:07:20]} 25. Bc2 {[%emt 0:02:57]} Rae8 {[%emt 0:01:54]} 26. Rxe8 $11 {[%emt 0:00:58]} Rxe8 {[%emt 0:00:07]} 27. Kg2 {[%emt 0:01:47]} Nce7 {[%emt 0:02:17]} 28. h4 {[%emt 0:01:04]} c6 {[%emt 0:01:57]} 29. Kh2 {[%emt 0:04:35]} Qd8 {[%emt 0:00:45]} 30. Rb1 {[%emt 0:00:47]} Ng6 {[%emt 0:06:39]} 31. Qd3 {[%emt 0:01:46]} Qf6 {[%emt 0:05:16]} 32. h5 {[%emt 0:04:15]} Nf8 {[%emt 0:00:23]} 33. Rh1 {[%emt 0:06:31]} Qg5 {[%emt 0:00:46]} 34. Bb1 {[%emt 0:00:34]} Qxh5+ {[%emt 0:00:42]} 35. Kg2 {[%emt 0:00:07]} Qg5 {[%emt 0:00:12]} 36. Rh4 {[%emt 0:00:11]} Ng6 {[%emt 0:06:16]} 37. Kh2 {[%emt 0:01:18]} Re1 {[%emt 0:01:16]} 38. f4 {[%emt 0:02:46]} Qf6 {[%emt 0:01:12]} 39. Rg4 {[%emt 0:00:39]} h5 {[%emt 0:03:59]} 40. Rg5 {[%emt 0:02:30]} h4 {[%emt 0:50:15]} 41. Rxg6 {[%emt 0:53:24]} fxg6 {[%emt 0:00:30]} 0-1

[Event "88th GER-ch Men 2017"]
[Site "Apolda"]
[Date "2017.06.28"]
[Round "6"]
[White "Heimrath, Reiner"]
[Black "Dobierzin, Olaf"]
[Result "1/2-1/2"]
[ECO "E67"]
[WhiteElo "2231"]
[BlackElo "2020"]
[Annotator "NA"]
[PlyCount "95"]
[EventDate "2017.??.??"]
[EventType "swiss"]
[EventCountry "GER"]
[SourceTitle "playchess.com"]
[Source "ChessBase"]
[SourceQuality "1"]
[TimeControl "40/6000+30:3000+30"]

1. Nf3 {[%emt 0:00:00]} Nf6 2. d4 {[%emt 0:00:01]} g6 {[%emt 0:00:51]} 3. g3 {[%emt 0:03:08]} Bg7 {[%emt 0:00:16]} 4. Bg2 {[%emt 0:00:06]} O-O {[%emt 0:00:32]} 5. O-O {[%emt 0:04:11]} d6 {[%emt 0:01:07]} 6. c4 {[%emt 0:00:25]} Nbd7 {[%emt 0:00:29]} 7. Nc3 {[%emt 0:00:37]} e5 {[%emt 0:04:45]} 8. b3 {[%emt 0:01:55]} Re8 9. dxe5 {[%emt 0:10:57]} dxe5 {[%emt 0:02:05]} 10. Ba3 {[%emt 0:07:21]} c6 {[%emt 0:09:29]} 11. Bd6 {[%emt 0:01:55]} (11. e4 $11) 11... e4 {[%emt 0:22:43]} 12. Ne1 {[%emt 0:04:27]} Qa5 13. Rc1 {[%emt 0:05:10]} Qh5 {[%emt 0:09:28]} 14. f3 {[%emt 0:36:21]} exf3 15. exf3 {[%emt 0:00:13]} Ne5 {[%emt 0:16:46]} 16. Bxe5 {[%emt 0:11:36]} Qxe5 $17 {[%emt 0:00:52]} 17. Nd3 {[%emt 0:00:19]} Qe3+ {[%emt 0:03:42]} 18. Nf2 {[%emt 0:00:27]} Ng4 19. fxg4 {[%emt 0:06:27]} Bxc3 {[%emt 0:14:48]} 20. Kh1 {[%emt 0:01:26]} Bd4 {[%emt 0:04:35]} 21. b4 {[%emt 0:01:13]} Be6 {[%emt 0:06:27]} 22. Qc2 {[%emt 0:01:32]} Rad8 {[%emt 0:01:53]} 23. a4 {[%emt 0:02:22]} Bg7 {[%emt 0:01:17]} 24. b5 {[%emt 0:00:28]} Rd2 25. Qe4 {[%emt 0:00:22]} Bd7 {[%emt 0:01:43]} 26. Qxe3 {[%emt 0:00:37]} Rxe3 {[%emt 0:02:21]} 27. Ne4 {[%emt 0:00:20]} Rxg2 {[%emt 0:00:02]} 28. Kxg2 {[%emt 0:00:25]} Rxe4 {[%emt 0:00:08]} 29. Rfd1 {[%emt 0:01:51]} Bd4 {[%emt 0:00:21]} 30. Kf3 {[%emt 0:01:48]} f5 31. gxf5 {[%emt 0:00:31]} Bxf5 {[%emt 0:01:16]} 32. c5 {[%emt 0:02:00]} Re3+ {[%emt 0:01:38]} 33. Kf4 {[%emt 0:00:10]} Re4+ {[%emt 0:00:20]} 34. Kf3 {[%emt 0:00:06]} g5 35. Rc4 {[%emt 0:00:56]} g4+ {[%emt 0:01:52]} 36. Kg2 {[%emt 0:00:06]} Bf6 37. Rxe4 {[%emt 0:01:33]} Bxe4+ {[%emt 0:02:54]} 38. Kf2 {[%emt 0:00:10]} Bd5 {[%emt 0:00:46]} 39. a5 {[%emt 0:00:12]} a6 {[%emt 0:00:05]} 40. bxa6 {[%emt 0:04:15]} bxa6 {[%emt 0:51:05]} 41. Ke3 {[%emt 0:50:22]} Bg5+ 42. Kd4 {[%emt 0:00:17]} Bf6+ {[%emt 0:00:39]} 43. Kd3 {[%emt 0:01:27]} Kf7 {[%emt 0:00:00]} 44. Rb1 {[%emt 0:00:00]} Bg2 {[%emt 0:00:00]} 45. Rg1 {[%emt 0:00:00]} Bf3 46. Rb1 {[%emt 0:00:00]} Bg2 {[%emt 0:00:00]} 47. Rg1 {[%emt 0:00:00]} Bf3 48. Rb1 1/2-1/2

[Event "88th GER-ch Men 2017"]
[Site "Apolda"]
[Date "2017.06.28"]
[Round "6"]
[White "Prenzler, Daniel"]
[Black "Middelhoff, Cornelius"]
[Result "1/2-1/2"]
[ECO "A08"]
[WhiteElo "2210"]
[BlackElo "2131"]
[Annotator "NA"]
[PlyCount "63"]
[EventDate "2017.??.??"]
[EventType "swiss"]
[EventCountry "GER"]
[SourceTitle "playchess.com"]
[Source "ChessBase"]
[SourceQuality "1"]
[TimeControl "40/6000+30:3000+30"]

1. e4 {[%emt 0:00:00]} c5 {[%emt 0:00:07]} 2. Nf3 {[%emt 0:00:00]} Nc6 {[%emt 0:00:03]} 3. d3 {[%emt 0:00:00]} e6 {[%emt 0:02:15]} 4. g3 {[%emt 0:00:00]} Nf6 {[%emt 0:02:15]} 5. Bg2 {[%emt 0:00:07]} d5 {[%emt 0:00:23]} 6. Nbd2 {[%emt 0:00:09]} Be7 {[%emt 0:05:07]} 7. O-O {[%emt 0:00:13]} O-O {[%emt 0:00:13]} 8. Re1 {[%emt 0:00:54]} Re8 {[%emt 0:14:58]} 9. e5 {[%emt 0:00:19]} Nd7 $1 {[%emt 0:00:32]} 10. Nf1 {[%emt 0:00:07] LiveBook: 19 Games} d4 {[%emt 0:15:15] C00: French: Unusual White 2nd moves} (10... b5 $15) (10... Qc7 11. Bf4 b5 12. h4 Bb7 13. N1h2 b4 14. Ng4 a5 15. Qd2 Nd4 16. h5 Nxf3+ 17. Bxf3 Kh8 18. h6 g6 {1-0 (37) Mozharov,M (2530)-Bagheri,M (2298) Urmia 2016}) 11. h4 {[%emt 0:08:15]} Qc7 $146 {[%emt 0:02:25]} ({Predecessor:} 11... Qb6 12. N1h2 f6 13. exf6 Nxf6 14. Ng5 e5 15. Ne4 Rf8 16. Nxf6+ Bxf6 {½-½ (39) Litvinov,M (2024)-Gaifullin,A (1925) Ufa 2015}) 12. Qe2 {[%emt 0:14:56]} Rb8 {[%emt 0:02:19]} 13. N1h2 {[%emt 0:10:56]} b5 {[%emt 0:06:53]} 14. Bf4 {[%emt 0:05:11]} c4 {[%emt 0:07:56]} ({Better is} 14... Bb7 $11) 15. Ng5 {[%emt 0:06:57]} Bxg5 {[%emt 0:01:06]} 16. hxg5 {[%emt 0:00:23]} Ne7 {[%emt 0:08:08]} 17. Qh5 {[%emt 0:12:06]} Bb7 {[%emt 0:04:42]} 18. Ng4 {[%emt 0:11:30]} Ng6 $15 {[%emt 0:02:19]} 19. Be4 {[%emt 0:19:56]} Bxe4 {[%emt 0:08:06]} 20. Rxe4 {[%emt 0:00:37]} cxd3 {[%emt 0:04:33]} 21. Rxd4 {[%emt 0:00:43]} dxc2 {[%emt 0:04:30]} 22. Rc1 {[%emt 0:12:38]} Ndxe5 {[%emt 0:08:22]} 23. Nxe5 {[%emt 0:00:26]} Qc5 {[%emt 0:04:22]} 24. Rd7 {[%emt 0:02:58]} Nxe5 {[%emt 0:00:50]} 25. Bxe5 {[%emt 0:00:02]} Qxe5 {[%emt 0:00:12]} 26. Qxf7+ {[%emt 0:00:54]} Kh8 {[%emt 0:00:01]} 27. Rxc2 {[%emt 0:01:06]} Rf8 {[%emt 0:03:45]} 28. Qe7 {[%emt 0:00:31]} Qe1+ {[%emt 0:00:13]} 29. Kg2 {[%emt 0:00:05]} Qe4+ {[%emt 0:00:04]} 30. Kg1 {[%emt 0:00:02]} Qe1+ {[%emt 0:00:03]} 31. Kg2 {[%emt 0:00:04]} Qe4+ {[%emt 0:00:04]} 32. Kg1 {[%emt 0:00:09]} 1/2-1/2

[Event "88th GER-ch Men 2017"]
[Site "Apolda"]
[Date "2017.06.28"]
[Round "6"]
[White "Heinert, Eugen"]
[Black "Schmitt, Philipp"]
[Result "1-0"]
[ECO "A14"]
[WhiteElo "2151"]
[BlackElo "2174"]
[Annotator "NA"]
[PlyCount "81"]
[EventDate "2017.??.??"]
[EventType "swiss"]
[EventCountry "GER"]
[SourceTitle "playchess.com"]
[Source "ChessBase"]
[SourceQuality "1"]
[TimeControl "40/6000+30:3000+30"]

1. c4 {[%emt 0:00:00]} e6 {[%emt 0:00:20]} 2. g3 {[%emt 0:00:30]} d5 {[%emt 0:00:51]} 3. Nf3 {[%emt 0:00:29]} Nf6 {[%emt 0:00:13]} 4. Bg2 {[%emt 0:00:05]} Be7 {[%emt 0:00:46]} 5. O-O {[%emt 0:00:52]} O-O {[%emt 0:00:09]} 6. b3 {[%emt 0:00:21]} c5 {[%emt 0:00:51]} 7. cxd5 {[%emt 0:00:05]} exd5 {[%emt 0:00:33]} 8. d4 {[%emt 0:00:05]} Nc6 {[%emt 0:01:09]} 9. Bb2 {[%emt 0:00:42]} Ne4 {[%emt 0:01:55]} 10. Nc3 {[%emt 0:00:33]} Bf6 {[%emt 0:01:38]} 11. Nxe4 {[%emt 0:06:08]} dxe4 {[%emt 0:00:09]} 12. Nd2 {[%emt 0:00:12]} Bxd4 {[%emt 0:02:28] D34: Tarrasch Defence: 6 g3 Nf6 7 Bg2 Be7} 13. Bxd4 {[%emt 0:00:59]} cxd4 {[%emt 0:00:32]} (13... Nxd4 14. e3 Nf3+ 15. Nxf3 Qxd1 16. Rfxd1 exf3 17. Bxf3 Rb8 18. Kg2 b6 19. Rd2 g6 20. Rad1 Kg7 21. Rd6 Re8 22. g4 Be6 23. Kg3 Rbc8 24. Bb7 Rc7 25. Ba6 Ree7 26. Bc4 {½-½ (26) Gourlay,I (2385)-Eggleston,D (2413) Crawley 2016}) 14. Nxe4 {[%emt 0:01:37]} Re8 {[%emt 0:08:02]} 15. Rc1 {[%emt 0:02:17]} Bg4 {[%emt 0:15:56]} 16. Re1 {[%emt 0:14:55]} Rc8 {[%emt 0:04:47]} 17. Qd2 $146 {[%emt 0:05:22]} ({Predecessor:} 17. h3 Bf5 18. Nc5 b6 19. Nd3 Be4 20. Qd2 Bxg2 21. Kxg2 h6 22. Nb4 Nxb4 23. Rxc8 Qxc8 24. Qxb4 Qc6+ 25. Kg1 Qe4 26. e3 g6 {½-½ (26) Schmuecker,M (2213)-Esser,N (2159) Oberhausen 2013}) 17... b6 {[%emt 0:29:02]} 18. Qf4 {[%emt 0:14:30]} Ne5 {[%emt 0:00:59]} 19. Rxc8 {[%emt 0:07:34]} Bxc8 {[%emt 0:00:15]} 20. Rd1 {[%emt 0:01:36]} Ba6 {[%emt 0:04:54]} 21. Rxd4 {[%emt 0:03:04]} Nf3+ {[%emt 0:00:18]} 22. Bxf3 {[%emt 0:02:10]} Qxd4 {[%emt 0:00:10]} 23. Bh5 {[%emt 0:02:36]} Qd1+ {[%emt 0:02:42]} 24. Kg2 {[%emt 0:00:09]} Qd5 {[%emt 0:00:16]} 25. Bf3 {[%emt 0:01:35]} Qe5 $17 {[%emt 0:01:39]} ({Better is} 25... Qd4 $19 26. Qd6 Qxd6 27. Nxd6 Rd8) 26. Qd2 {[%emt 0:02:34]} h6 {[%emt 0:10:46]} 27. g4 {[%emt 0:16:43]} Qe7 {[%emt 0:02:49]} 28. Ng3 {[%emt 0:01:36]} Bb7 {[%emt 0:01:44]} 29. Nf5 {[%emt 0:05:31]} Bxf3+ {[%emt 0:04:53]} 30. exf3 {[%emt 0:01:46]} Qc5 {[%emt 0:05:44]} 31. h4 {[%emt 0:03:21]} a5 {[%emt 0:00:31]} 32. h5 {[%emt 0:00:55]} Qe5 {[%emt 0:01:41]} 33. Qd7 {[%emt 0:01:11]} Rf8 {[%emt 0:03:01]} 34. a4 {[%emt 0:05:39]} Qc3 {[%emt 0:01:20]} 35. Qd5 {[%emt 0:04:29]} Qc5 {[%emt 0:01:57]} 36. Qd7 {[%emt 0:00:25]} Qb4 {[%emt 0:01:04]} 37. Qd5 {[%emt 0:01:55]} Re8 {[%emt 0:00:30]} 38. Nd6 {[%emt 0:00:15]} Re6 {[%emt 0:00:25]} 39. Qa8+ {[%emt 0:00:32]} Kh7 {[%emt 0:01:31]} 40. Nxf7 {[%emt 0:00:17]} g5 {[%emt 0:51:19]} 41. Qh8# {[%emt 0:50:20]} 1-0

[Event "88th GER-ch Men 2017"]
[Site "Apolda"]
[Date "2017.06.30"]
[Round "8"]
[White "Jahncke, Giso"]
[Black "Zude, Arno"]
[Result "1-0"]
[ECO "C54"]
[WhiteElo "2340"]
[BlackElo "2392"]
[Annotator "NA RC"]
[PlyCount "69"]
[EventDate "2017.??.??"]
[EventType "swiss"]
[EventCountry "GER"]
[SourceTitle "playchess.com"]
[Source "ChessBase"]
[SourceQuality "1"]
[TimeControl "40/6000+30:3000+30"]

1. e4 {[%emt 0:00:00]} e5 {[%emt 0:00:09]} 2. Nf3 {[%emt 0:00:00]} Nc6 {[%emt 0:00:07]} 3. Bc4 {[%emt 0:00:00]} Bc5 {[%emt 0:00:07]} 4. c3 {[%emt 0:00:00]} Nf6 {[%emt 0:00:07]} 5. d3 {[%emt 0:00:10]} O-O {[%emt 0:00:10]} 6. O-O {[%emt 0:00:26]} d6 {[%emt 0:00:17] LiveBook: 962 Games} 7. Bg5 {[%emt 0:00:25]} h6 {[%emt 0:01:23]} 8. Bh4 {[%emt 0:01:09]} g5 {[%emt 0:05:38] C54: Giuoco Piano: 4 c3 Nf6, main lines with 5 d4 and 5 d3} (8... a6 9. Bb3 Ba7 10. Nbd2 Be6 11. Re1 Kh7 12. Nf1 g5 13. Bg3 Bxb3 14. Qxb3 Rb8 15. d4 exd4 16. Nxd4 {0-1 (52) Caruana,F (2808)-Anand,V (2786) Stavanger 2017}) 9. Nxg5 {[%emt 0:00:06]} hxg5 {[%emt 0:00:13]} 10. Bxg5 {[%emt 0:00:03]} Kg7 {[%emt 0:00:39]} 11. b4 {[%emt 0:00:22]} Bb6 {[%emt 0:00:32]} 12. Qf3 {[%emt 0:00:06]} Rh8 $146 {[%emt 0:10:05]} ({Predecessor:} 12... Kg6 13. Bh4 Rg8 14. h3 Be6 15. Nd2 Qe7 16. Bd5 {0-1 (36) Hendrickson,N (2200)-Patel,A (2309) Saint Louis 2015}) 13. Nd2 {[%emt 0:01:26]} Nb8 {[%emt 0:09:59]} (13... a5 $5 {[%cal Ra5b4]} 14. b5 Nb8 $11) 14. h4 {[%emt 0:11:01]} Nbd7 {[%emt 0:08:38]} 15. Bb3 {[%emt 0:06:34]} Qg8 {[%emt 0:16:57]} (15... Nf8 $15) 16. Nc4 {[%emt 0:05:59]} Qh7 {[%emt 0:01:49]} 17. a4 {[%emt 0:18:18]} a5 {[%emt 0:03:32]} 18. Nxb6 {[%emt 0:16:02]} ({Much worse is} 18. Nxa5 Bxa5 19. bxa5 Qg6 $17) 18... cxb6 {[%emt 0:00:42]} 19. Qe3 {[%emt 0:00:34]} Nh5 {[%emt 0:17:37]} 20. f4 {[%emt 0:03:41]} f6 {[%emt 0:02:48]} 21. fxe5 {[%emt 0:04:07]} dxe5 {[%emt 0:00:36] [#]} 22. Rf5 $1 {[%emt 0:13:54]} Rf8 {[%emt 0:04:48]} 23. Raf1 {[%emt 0:02:30]} axb4 {[%emt 0:05:32]} 24. cxb4 {[%emt 0:04:42]} b5 {[%emt 0:00:12]} 25. axb5 {[%emt 0:05:49]} Ra3 {[%emt 0:02:10]} 26. Bc4 {[%emt 0:00:06]} Ra4 {[%emt 0:06:57]} 27. g4 {[%emt 0:01:34]} Nf4 {[%emt 0:00:31]} 28. Bxf4 {[%emt 0:00:43]} exf4 {[%emt 0:01:19]} 29. Qxf4 {[%emt 0:00:40]} Rxb4 {[%emt 0:05:12]} 30. e5 {[%emt 0:03:30]} Qg6 {[%emt 0:00:30]} 31. e6 {[%emt 0:02:44]} Nb6 {[%emt 0:02:36]} 32. h5 {[%emt 0:01:25]} Qh6 {[%emt 0:01:24]} 33. g5 {[%emt 0:01:46]} Qxh5 {[%emt 0:00:29]} 34. gxf6+ {[%emt 0:00:39]} Rxf6 {[%emt 0:00:10]} 35. Rg5+ {[%emt 0:00:32]} 1-0